[Event "Titled Tuesday Blitz February 14 Early 2023"]
[White "Lazavik, Denis"]
[Black "Weetik, Vjacheslav"]
[WhiteFideId "13515110"]
[BlackFideId "4153472"]
[WhiteElo "2544"]
[BlackElo "2423"]
[Result "1-0"]
[Round "02"]
[TimeControl "180+2"]
[Date "2023.02.15"]
[WhiteClock "0:00:05"]
[BlackClock "0:00:01"]

1. d4 {[%clk 0:03:00]}  d5 {[%clk 0:02:59]} 2. c4 {[%clk 0:03:01]}  e6 {[%clk 0:02:59]} 3. Nf3 {[%clk 0:03:01]}  Nf6 {[%clk 0:02:59]} 4. g3 {[%clk 0:03:01]}  Be7 {[%clk 0:02:53]} 5. Bg2 {[%clk 0:03:02]}  O-O {[%clk 0:02:54]} 6. O-O {[%clk 0:03:02]}  dxc4 {[%clk 0:02:54]} 7. Qc2 {[%clk 0:03:03]}  b5 {[%clk 0:02:53]} 8. a4 {[%clk 0:03:02]}  Bb7 {[%clk 0:02:50]} 9. axb5 {[%clk 0:03:01]}  a6 {[%clk 0:02:50]} 10. bxa6 {[%clk 0:02:57]}  Nxa6 {[%clk 0:02:48]} 11. Qxc4 {[%clk 0:02:55]}  Bd5 {[%clk 0:02:48]} 12. Qc3 {[%clk 0:02:54]}  Ne4 {[%clk 0:02:47]} 13. Qe1 {[%clk 0:02:15]}  Nb4 {[%clk 0:02:27]} 14. Rxa8 {[%clk 0:02:08]}  Qxa8 {[%clk 0:02:28]} 15. Nc3 {[%clk 0:02:06]}  Bb7 {[%clk 0:01:53]} 16. Bf4 {[%clk 0:01:39]}  c5 {[%clk 0:01:51]} 17. Qa1 {[%clk 0:00:51]}  Rd8 {[%clk 0:00:43]} 18. Nxe4 {[%clk 0:00:25]}  Bxe4 {[%clk 0:00:40]} 19. Qxa8 {[%clk 0:00:26]}  Rxa8 {[%clk 0:00:34]} 20. dxc5 {[%clk 0:00:24]}  Bxc5 {[%clk 0:00:28]} 21. Ne5 {[%clk 0:00:24]}  Bxg2 {[%clk 0:00:24]} 22. Kxg2 {[%clk 0:00:25]}  Nd5 {[%clk 0:00:19]} 23. Nd3 {[%clk 0:00:22]}  Bd4 {[%clk 0:00:17]} 24. Be5 {[%clk 0:00:22]}  Bxe5 {[%clk 0:00:11]} 25. Nxe5 {[%clk 0:00:22]}  Rb8 {[%clk 0:00:10]} 26. Nd3 {[%clk 0:00:22]}  Rb3 {[%clk 0:00:08]} 27. Ra1 {[%clk 0:00:18]}  g5 {[%clk 0:00:08]} 28. Ra7 {[%clk 0:00:16]}  f6 {[%clk 0:00:05]} 29. Kf1 {[%clk 0:00:13]}  h5 {[%clk 0:00:04]} 30. Ke1 {[%clk 0:00:13]}  e5 {[%clk 0:00:04]} 31. Ra2 {[%clk 0:00:04]}  g4 {[%clk 0:00:02]} 32. Kd2 {[%clk 0:00:04]}  Kf7 {[%clk 0:00:02]} 33. Kc2 {[%clk 0:00:04]}  Rb7 {[%clk 0:00:01]} 34. Ra5 {[%clk 0:00:05]} 1-0


[Site "https://www.chess.com"]

[Event "Titled Tuesday Blitz February 14 Early 2023"]
[White "Skvortsov, Andrei"]
[Black "Tsydypov, Zhamsaran"]
[WhiteFideId "24108600"]
[BlackFideId "4108566"]
[WhiteElo "2313"]
[BlackElo "2518"]
[Result "0-1"]
[Round "02"]
[TimeControl "180+2"]
[Date "2023.02.15"]
[WhiteClock "0:00:14"]
[BlackClock "0:01:38"]

1. e4 {[%clk 0:03:00]}  c5 {[%clk 0:02:58]} 2. d4 {[%clk 0:03:01]}  cxd4 {[%clk 0:02:58]} 3. Qxd4 {[%clk 0:03:02]}  Nc6 {[%clk 0:02:57]} 4. Qd3 {[%clk 0:03:02]}  g6 {[%clk 0:02:52]} 5. Nc3 {[%clk 0:03:03]}  Bg7 {[%clk 0:02:52]} 6. Nf3 {[%clk 0:03:03]}  d6 {[%clk 0:02:52]} 7. Be2 {[%clk 0:03:04]}  Nf6 {[%clk 0:02:52]} 8. O-O {[%clk 0:03:04]}  O-O {[%clk 0:02:53]} 9. Nd5 {[%clk 0:03:05]}  Nd7 {[%clk 0:02:53]} 10. c3 {[%clk 0:03:05]}  Nc5 {[%clk 0:02:53]} 11. Qc2 {[%clk 0:03:05]}  e6 {[%clk 0:02:54]} 12. Ne3 {[%clk 0:03:06]}  b6 {[%clk 0:02:54]} 13. b4 {[%clk 0:03:03]}  Nd7 {[%clk 0:02:52]} 14. Ba3 {[%clk 0:02:53]}  Nce5 {[%clk 0:02:36]} 15. Nd4 {[%clk 0:02:45]}  Bb7 {[%clk 0:02:35]} 16. Rfd1 {[%clk 0:02:42]}  a6 {[%clk 0:02:33]} 17. f4 {[%clk 0:02:28]}  Nc6 {[%clk 0:02:31]} 18. Nxc6 {[%clk 0:02:28]}  Bxc6 {[%clk 0:02:32]} 19. Rxd6 {[%clk 0:02:12]}  Qc7 {[%clk 0:02:32]} 20. e5 {[%clk 0:02:01]}  Bh6 {[%clk 0:02:25]} 21. Rd4 {[%clk 0:01:31]}  Nxe5 {[%clk 0:02:24]} 22. b5 {[%clk 0:01:31]}  Bd5 {[%clk 0:02:04]} 23. Nxd5 {[%clk 0:01:25]}  exd5 {[%clk 0:02:03]} 24. Bxf8 {[%clk 0:01:19]}  Rxf8 {[%clk 0:02:02]} 25. bxa6 {[%clk 0:01:15]}  Nc6 {[%clk 0:02:02]} 26. Rxd5 {[%clk 0:01:10]}  Nb4 {[%clk 0:02:01]} 27. Qb3 {[%clk 0:00:54]}  Nxd5 {[%clk 0:02:01]} 28. Qxd5 {[%clk 0:00:55]}  Bxf4 {[%clk 0:02:00]} 29. g3 {[%clk 0:00:51]}  Be3+ {[%clk 0:02:00]} 30. Kg2 {[%clk 0:00:51]}  Qxc3 {[%clk 0:02:00]} 31. Rd1 {[%clk 0:00:42]}  Qb2 {[%clk 0:01:55]} 32. Qf3 {[%clk 0:00:36]}  Bc5 {[%clk 0:01:50]} 33. a3 {[%clk 0:00:33]}  Re8 {[%clk 0:01:49]} 34. Re1 {[%clk 0:00:25]}  b5 {[%clk 0:01:38]} 35. Kf1 {[%clk 0:00:20]}  Qd4 {[%clk 0:01:38]} 36. Kg2 {[%clk 0:00:20]}  Ba7 {[%clk 0:01:38]} 37. Rf1 {[%clk 0:00:17]}  Re7 {[%clk 0:01:38]} 38. Bxb5 {[%clk 0:00:16]}  Qb2+ {[%clk 0:01:38]} 39. Kh3 {[%clk 0:00:16]}  Qxb5 {[%clk 0:01:38]} 40. Qf6 {[%clk 0:00:13]}  Qh5+ {[%clk 0:01:38]} 41. Kg2 {[%clk 0:00:14]}  Re2+ {[%clk 0:01:38]} 0-1


[Site "https://www.chess.com"]

[Event "Titled Tuesday Blitz February 14 Early 2023"]
[White "Jakubowski, Krzysztof"]
[Black "Shimanov, Aleksandr"]
[WhiteFideId "1112848"]
[BlackFideId "4198603"]
[WhiteElo "2486"]
[BlackElo "2581"]
[Result "1-0"]
[Round "02"]
[TimeControl "180+2"]
[Date "2023.02.15"]
[WhiteClock "0:00:19"]
[BlackClock "0:00:31"]

1. e4 {[%clk 0:02:55]}  d5 {[%clk 0:02:58]} 2. exd5 {[%clk 0:02:53]}  Qxd5 {[%clk 0:02:59]} 3. Nc3 {[%clk 0:02:51]}  Qe5+ {[%clk 0:02:59]} 4. Nge2 {[%clk 0:02:50]}  Nf6 {[%clk 0:02:58]} 5. d4 {[%clk 0:02:49]}  Qa5 {[%clk 0:02:58]} 6. g3 {[%clk 0:02:20]}  Bf5 {[%clk 0:02:56]} 7. Bg2 {[%clk 0:02:19]}  c6 {[%clk 0:02:56]} 8. O-O {[%clk 0:02:16]}  e6 {[%clk 0:02:55]} 9. Re1 {[%clk 0:02:10]}  Be7 {[%clk 0:02:55]} 10. h3 {[%clk 0:02:07]}  h6 {[%clk 0:02:54]} 11. a3 {[%clk 0:02:05]}  O-O {[%clk 0:02:54]} 12. Kh2 {[%clk 0:02:04]}  Nbd7 {[%clk 0:02:48]} 13. Bd2 {[%clk 0:01:59]}  Qc7 {[%clk 0:02:47]} 14. Bf4 {[%clk 0:01:57]}  Bd6 {[%clk 0:02:47]} 15. Qd2 {[%clk 0:01:49]}  Rfd8 {[%clk 0:02:43]} 16. Bxd6 {[%clk 0:01:46]}  Qxd6 {[%clk 0:02:43]} 17. Rad1 {[%clk 0:01:46]}  Nb6 {[%clk 0:02:35]} 18. Qc1 {[%clk 0:01:43]}  Rac8 {[%clk 0:02:25]} 19. Nf4 {[%clk 0:01:34]}  Nfd5 {[%clk 0:02:15]} 20. Nce2 {[%clk 0:01:30]}  Nc4 {[%clk 0:01:56]} 21. c3 {[%clk 0:01:23]}  a5 {[%clk 0:01:49]} 22. Nd3 {[%clk 0:01:06]}  Bxd3 {[%clk 0:01:42]} 23. Rxd3 {[%clk 0:01:05]}  a4 {[%clk 0:01:42]} 24. Qc2 {[%clk 0:00:48]}  b5 {[%clk 0:01:40]} 25. Nc1 {[%clk 0:00:46]}  c5 {[%clk 0:01:31]} 26. Red1 {[%clk 0:00:37]}  h5 {[%clk 0:01:14]} 27. Qe2 {[%clk 0:00:36]}  h4 {[%clk 0:01:12]} 28. Na2 {[%clk 0:00:33]}  hxg3+ {[%clk 0:01:07]} 29. fxg3 {[%clk 0:00:34]}  cxd4 {[%clk 0:00:39]} 30. Rxd4 {[%clk 0:00:33]}  Qb6 {[%clk 0:00:39]} 31. Qf3 {[%clk 0:00:24]}  Nxb2 {[%clk 0:00:36]} 32. Rf1 {[%clk 0:00:23]}  Qc7 {[%clk 0:00:35]} 33. Rh4 {[%clk 0:00:20]}  Qe5 {[%clk 0:00:34]} 34. Rh5 {[%clk 0:00:19]}  Qe3 {[%clk 0:00:31]} 35. Qxf7# {[%clk 0:00:19]} 1-0


[Site "https://www.chess.com"]

[Event "Titled Tuesday Blitz February 14 Early 2023"]
[White "Durarbayli, Vasif"]
[Black "Souleidis, Georgios"]
[WhiteFideId "13402935"]
[BlackFideId "4206827"]
[WhiteElo "2627"]
[BlackElo "2419"]
[Result "1-0"]
[Round "02"]
[TimeControl "180+2"]
[Date "2023.02.15"]
[WhiteClock "0:00:09"]
[BlackClock "0:00:04"]

1. e4 {[%clk 0:03:00]}  e5 {[%clk 0:02:58]} 2. Nf3 {[%clk 0:03:00]}  d6 {[%clk 0:02:58]} 3. Bc4 {[%clk 0:02:58]}  Nf6 {[%clk 0:02:57]} 4. d3 {[%clk 0:02:58]}  Be7 {[%clk 0:02:57]} 5. O-O {[%clk 0:02:57]}  O-O {[%clk 0:02:57]} 6. c3 {[%clk 0:02:57]}  c5 {[%clk 0:02:54]} 7. Re1 {[%clk 0:02:49]}  Be6 {[%clk 0:02:51]} 8. Bxe6 {[%clk 0:02:44]}  fxe6 {[%clk 0:02:51]} 9. d4 {[%clk 0:02:45]}  exd4 {[%clk 0:02:47]} 10. cxd4 {[%clk 0:02:45]}  cxd4 {[%clk 0:02:26]} 11. Nxd4 {[%clk 0:02:44]}  Qd7 {[%clk 0:02:26]} 12. Qb3 {[%clk 0:02:40]}  d5 {[%clk 0:02:26]} 13. exd5 {[%clk 0:02:36]}  exd5 {[%clk 0:02:26]} 14. Nc3 {[%clk 0:01:33]}  Nc6 {[%clk 0:02:26]} 15. Ne6 {[%clk 0:01:28]}  Rfe8 {[%clk 0:02:17]} 16. Bg5 {[%clk 0:01:25]}  Bb4 {[%clk 0:01:10]} 17. Nf4 {[%clk 0:00:41]}  Rxe1+ {[%clk 0:01:01]} 18. Rxe1 {[%clk 0:00:42]}  Re8 {[%clk 0:00:21]} 19. Rxe8+ {[%clk 0:00:42]}  Qxe8 {[%clk 0:00:22]} 20. Kf1 {[%clk 0:00:42]}  Bxc3 {[%clk 0:00:19]} 21. bxc3 {[%clk 0:00:41]}  Qe5 {[%clk 0:00:04]} 22. Bxf6 {[%clk 0:00:38]}  Qxf4 {[%clk 0:00:04]} 23. Qxd5+ {[%clk 0:00:37]}  Kf8 {[%clk 0:00:05]} 24. Bg5 {[%clk 0:00:30]}  Qxh2 {[%clk 0:00:03]} 25. Qf5+ {[%clk 0:00:25]}  Ke8 {[%clk 0:00:03]} 26. Qe6+ {[%clk 0:00:13]}  Kf8 {[%clk 0:00:03]} 27. Qf5+ {[%clk 0:00:14]}  Ke8 {[%clk 0:00:04]} 28. Qc8+ {[%clk 0:00:15]}  Kf7 {[%clk 0:00:04]} 29. Qxb7+ {[%clk 0:00:15]}  Kg6 {[%clk 0:00:05]} 30. Qxc6+ {[%clk 0:00:14]}  Kxg5 {[%clk 0:00:05]} 31. g3 {[%clk 0:00:11]}  Qh3+ {[%clk 0:00:04]} 32. Ke1 {[%clk 0:00:12]}  Qf5 {[%clk 0:00:03]} 33. Qc4 {[%clk 0:00:09]}  Qb1+ {[%clk 0:00:03]} 34. Ke2 {[%clk 0:00:10]}  Qc2+ {[%clk 0:00:03]} 35. Kf3 {[%clk 0:00:10]}  Qd1+ {[%clk 0:00:02]} 36. Kg2 {[%clk 0:00:11]}  Qd7 {[%clk 0:00:01]} 37. Qf4+ {[%clk 0:00:09]}  Kg6 {[%clk 0:00:01]} 38. Qe4+ {[%clk 0:00:10]}  Kf6 {[%clk 0:00:02]} 39. Qd4+ {[%clk 0:00:07]}  Qxd4 {[%clk 0:00:02]} 40. cxd4 {[%clk 0:00:08]}  Ke6 {[%clk 0:00:03]} 41. Kf3 {[%clk 0:00:09]}  Kd5 {[%clk 0:00:03]} 42. Ke3 {[%clk 0:00:09]}  h5 {[%clk 0:00:04]} 43. f4 {[%clk 0:00:09]}  g6 {[%clk 0:00:04]} 44. Kd3 {[%clk 0:00:09]}  a6 {[%clk 0:00:04]} 45. a3 {[%clk 0:00:09]}  a5 {[%clk 0:00:03]} 46. a4 {[%clk 0:00:10]}  Kd6 {[%clk 0:00:02]} 47. Kc4 {[%clk 0:00:09]}  Ke6 {[%clk 0:00:03]} 48. d5+ {[%clk 0:00:09]}  Kf5 {[%clk 0:00:02]} 49. d6 {[%clk 0:00:09]}  h4 {[%clk 0:00:03]} 50. gxh4 {[%clk 0:00:09]}  Ke6 {[%clk 0:00:04]} 51. Kc5 {[%clk 0:00:09]} 1-0


[Site "https://www.chess.com"]

[Event "Titled Tuesday Blitz February 14 Early 2023"]
[White "Sjugirov, Sanan"]
[Black "Kvaloy, Aksel Bu"]
[WhiteFideId "4189302"]
[BlackFideId "1528815"]
[WhiteElo "2712"]
[BlackElo "2321"]
[Result "1/2-1/2"]
[Round "02"]
[TimeControl "180+2"]
[Date "2023.02.15"]
[WhiteClock "0:00:02"]
[BlackClock "0:00:07"]

1. d4 {[%clk 0:02:57]}  Nf6 {[%clk 0:02:59]} 2. c4 {[%clk 0:02:56]}  e6 {[%clk 0:02:59]} 3. Nf3 {[%clk 0:02:56]}  d5 {[%clk 0:02:59]} 4. Nc3 {[%clk 0:02:56]}  Bb4 {[%clk 0:02:59]} 5. Bg5 {[%clk 0:02:53]}  h6 {[%clk 0:02:58]} 6. Bxf6 {[%clk 0:02:52]}  Qxf6 {[%clk 0:02:59]} 7. e3 {[%clk 0:02:52]}  O-O {[%clk 0:02:58]} 8. cxd5 {[%clk 0:02:52]}  exd5 {[%clk 0:02:58]} 9. Bd3 {[%clk 0:02:52]}  c6 {[%clk 0:02:49]} 10. O-O {[%clk 0:02:51]}  Bg4 {[%clk 0:02:48]} 11. h3 {[%clk 0:02:51]}  Bxf3 {[%clk 0:02:48]} 12. Qxf3 {[%clk 0:02:52]}  Qxf3 {[%clk 0:02:48]} 13. gxf3 {[%clk 0:02:53]}  Nd7 {[%clk 0:02:45]} 14. a3 {[%clk 0:02:51]}  Bd6 {[%clk 0:02:43]} 15. Kg2 {[%clk 0:02:41]}  f5 {[%clk 0:02:38]} 16. h4 {[%clk 0:02:37]}  h5 {[%clk 0:02:36]} 17. f4 {[%clk 0:02:31]}  g6 {[%clk 0:02:35]} 18. Ne2 {[%clk 0:02:30]}  Be7 {[%clk 0:02:32]} 19. Rh1 {[%clk 0:02:27]}  Rac8 {[%clk 0:02:24]} 20. Rad1 {[%clk 0:02:26]}  Kg7 {[%clk 0:02:17]} 21. Ng1 {[%clk 0:02:25]}  c5 {[%clk 0:02:18]} 22. dxc5 {[%clk 0:02:22]}  Nxc5 {[%clk 0:02:18]} 23. Nf3 {[%clk 0:02:18]}  Bf6 {[%clk 0:02:15]} 24. b4 {[%clk 0:01:46]}  Ne4 {[%clk 0:02:13]} 25. Bxe4 {[%clk 0:01:29]}  dxe4 {[%clk 0:02:14]} 26. Ng5 {[%clk 0:01:29]}  Bxg5 {[%clk 0:02:08]} 27. fxg5 {[%clk 0:01:30]}  Rfd8 {[%clk 0:02:06]} 28. Rxd8 {[%clk 0:01:15]}  Rxd8 {[%clk 0:02:06]} 29. Rc1 {[%clk 0:01:16]}  Rd7 {[%clk 0:02:03]} 30. Kg3 {[%clk 0:01:13]}  Kf7 {[%clk 0:02:02]} 31. Rc8 {[%clk 0:01:09]}  Re7 {[%clk 0:01:32]} 32. Kf4 {[%clk 0:01:04]}  Kg7 {[%clk 0:01:29]} 33. a4 {[%clk 0:00:49]}  Kf7 {[%clk 0:01:26]} 34. b5 {[%clk 0:00:44]}  b6 {[%clk 0:01:26]} 35. Rc6 {[%clk 0:00:41]}  Kg7 {[%clk 0:01:23]} 36. Rf6 {[%clk 0:00:23]}  Kh7 {[%clk 0:01:21]} 37. Rd6 {[%clk 0:00:17]}  Kg7 {[%clk 0:01:21]} 38. Rd8 {[%clk 0:00:15]}  Kf7 {[%clk 0:01:19]} 39. Rc8 {[%clk 0:00:15]}  Kg7 {[%clk 0:01:18]} 40. Rc6 {[%clk 0:00:14]}  Kf7 {[%clk 0:01:18]} 41. a5 {[%clk 0:00:14]}  bxa5 {[%clk 0:01:17]} 42. Ra6 {[%clk 0:00:14]}  Rb7 {[%clk 0:00:34]} 43. Rxa5 {[%clk 0:00:14]}  Ke6 {[%clk 0:00:34]} 44. Ra6+ {[%clk 0:00:13]}  Kf7 {[%clk 0:00:34]} 45. Ra5 {[%clk 0:00:03]}  Ke6 {[%clk 0:00:34]} 46. Ra2 {[%clk 0:00:03]}  Kf7 {[%clk 0:00:15]} 47. Ra6 {[%clk 0:00:03]}  Kg7 {[%clk 0:00:09]} 48. Ra5 {[%clk 0:00:03]}  Re7 {[%clk 0:00:08]} 49. Ra4 {[%clk 0:00:02]}  Kf7 {[%clk 0:00:08]} 50. Ra6 {[%clk 0:00:02]}  Rb7 {[%clk 0:00:07]} 51. Ra5 {[%clk 0:00:02]} 1/2-1/2


[Site "https://www.chess.com"]

[Event "Titled Tuesday Blitz February 14 Early 2023"]
[White "Demchenko, Anton"]
[Black "Horobetz, Graham"]
[WhiteFideId "4160258"]
[BlackFideId "2047322"]
[WhiteElo "2623"]
[BlackElo "2140"]
[Result "1-0"]
[Round "02"]
[TimeControl "180+2"]
[Date "2023.02.15"]
[WhiteClock "0:00:32"]
[BlackClock "0:00:11"]

1. e4 {[%clk 0:03:00]}  c5 {[%clk 0:02:59]} 2. Nf3 {[%clk 0:03:00]}  d6 {[%clk 0:02:59]} 3. d4 {[%clk 0:03:00]}  cxd4 {[%clk 0:03:00]} 4. Nxd4 {[%clk 0:03:01]}  Nf6 {[%clk 0:03:01]} 5. Nc3 {[%clk 0:02:59]}  a6 {[%clk 0:03:01]} 6. f3 {[%clk 0:02:55]}  e5 {[%clk 0:03:01]} 7. Nb3 {[%clk 0:02:56]}  Be7 {[%clk 0:03:01]} 8. Be3 {[%clk 0:02:56]}  Be6 {[%clk 0:03:02]} 9. Qd2 {[%clk 0:02:52]}  h5 {[%clk 0:03:02]} 10. O-O-O {[%clk 0:02:50]}  Nbd7 {[%clk 0:03:02]} 11. Kb1 {[%clk 0:02:46]}  Rc8 {[%clk 0:02:59]} 12. Bg5 {[%clk 0:02:44]}  b5 {[%clk 0:02:39]} 13. a3 {[%clk 0:02:44]}  Qc7 {[%clk 0:02:23]} 14. h4 {[%clk 0:02:42]}  Nb6 {[%clk 0:02:09]} 15. Bxf6 {[%clk 0:02:41]}  gxf6 {[%clk 0:01:48]} 16. Na5 {[%clk 0:02:40]}  Nc4 {[%clk 0:00:53]} 17. Nxc4 {[%clk 0:02:38]}  bxc4 {[%clk 0:00:53]} 18. Nd5 {[%clk 0:02:24]}  Qc5 {[%clk 0:00:51]} 19. Qb4 {[%clk 0:02:11]}  Qxb4 {[%clk 0:00:28]} 20. axb4 {[%clk 0:02:09]}  Bd8 {[%clk 0:00:20]} 21. Be2 {[%clk 0:01:14]}  Rg8 {[%clk 0:00:19]} 22. g4 {[%clk 0:01:05]}  hxg4 {[%clk 0:00:19]} 23. fxg4 {[%clk 0:01:06]}  Rh8 {[%clk 0:00:14]} 24. h5 {[%clk 0:01:02]}  Bxd5 {[%clk 0:00:15]} 25. Rxd5 {[%clk 0:01:01]}  Ke7 {[%clk 0:00:15]} 26. Rhd1 {[%clk 0:00:59]}  Rc6 {[%clk 0:00:15]} 27. c3 {[%clk 0:00:59]}  Bb6 {[%clk 0:00:14]} 28. Kc2 {[%clk 0:00:59]}  Be3 {[%clk 0:00:13]} 29. Ra1 {[%clk 0:00:59]}  Bg5 {[%clk 0:00:13]} 30. Rda5 {[%clk 0:00:57]}  Rd8 {[%clk 0:00:12]} 31. Rxa6 {[%clk 0:00:45]}  Rxa6 {[%clk 0:00:12]} 32. Rxa6 {[%clk 0:00:46]}  d5 {[%clk 0:00:13]} 33. Ra7+ {[%clk 0:00:46]}  Kf8 {[%clk 0:00:13]} 34. exd5 {[%clk 0:00:46]}  Rxd5 {[%clk 0:00:14]} 35. Bxc4 {[%clk 0:00:43]}  Rd2+ {[%clk 0:00:14]} 36. Kb3 {[%clk 0:00:42]}  e4 {[%clk 0:00:14]} 37. Rxf7+ {[%clk 0:00:42]}  Ke8 {[%clk 0:00:15]} 38. h6 {[%clk 0:00:39]}  e3 {[%clk 0:00:12]} 39. h7 {[%clk 0:00:35]}  Rh2 {[%clk 0:00:13]} 40. Rg7 {[%clk 0:00:32]}  Kf8 {[%clk 0:00:10]} 41. Rg8+ {[%clk 0:00:31]}  Ke7 {[%clk 0:00:11]} 42. h8=Q {[%clk 0:00:32]} 1-0


[Site "https://www.chess.com"]

[Event "Titled Tuesday Blitz February 14 Early 2023"]
[White "Florescu, Codrut-Constantin"]
[Black "Timofeev, Artyom"]
[WhiteFideId "1202200"]
[BlackFideId "4140419"]
[WhiteElo "2259"]
[BlackElo "2567"]
[Result "0-1"]
[Round "02"]
[TimeControl "180+2"]
[Date "2023.02.15"]
[WhiteClock "0:01:56"]
[BlackClock "0:01:48"]

1. e4 {[%clk 0:03:00]}  d6 {[%clk 0:02:59]} 2. d4 {[%clk 0:03:00]}  Nf6 {[%clk 0:02:59]} 3. Nc3 {[%clk 0:03:00]}  g6 {[%clk 0:02:59]} 4. Bg5 {[%clk 0:02:59]}  h6 {[%clk 0:02:58]} 5. Bh4 {[%clk 0:02:58]}  Bg7 {[%clk 0:02:54]} 6. f3 {[%clk 0:02:57]}  O-O {[%clk 0:02:51]} 7. Nge2 {[%clk 0:02:54]}  a6 {[%clk 0:02:47]} 8. Qd2 {[%clk 0:02:52]}  b5 {[%clk 0:02:46]} 9. a4 {[%clk 0:02:48]}  b4 {[%clk 0:02:46]} 10. Nd1 {[%clk 0:02:48]}  c5 {[%clk 0:02:42]} 11. d5 {[%clk 0:02:47]}  e6 {[%clk 0:02:26]} 12. Ne3 {[%clk 0:02:43]}  Nxe4 {[%clk 0:02:20]} 13. Bxd8 {[%clk 0:02:40]}  Nxd2 {[%clk 0:02:20]} 14. Be7 {[%clk 0:02:36]}  Nxf1 {[%clk 0:02:19]} 15. Kxf1 {[%clk 0:02:25]}  Re8 {[%clk 0:02:18]} 16. Bxd6 {[%clk 0:02:25]}  Nd7 {[%clk 0:02:01]} 17. dxe6 {[%clk 0:02:06]}  Rxe6 {[%clk 0:02:00]} 18. Nc4 {[%clk 0:02:06]}  a5 {[%clk 0:01:58]} 19. Rd1 {[%clk 0:02:01]}  Ba6 {[%clk 0:01:57]} 20. b3 {[%clk 0:02:01]}  Bxc4 {[%clk 0:01:50]} 21. bxc4 {[%clk 0:02:00]}  Nb6 {[%clk 0:01:50]} 22. Bxc5 {[%clk 0:01:58]}  Nxa4 {[%clk 0:01:50]} 23. Bf2 {[%clk 0:01:56]}  Nb2 {[%clk 0:01:48]} 0-1


[Site "https://www.chess.com"]

[Event "Titled Tuesday Blitz February 14 Early 2023"]
[White "McCoy, Owen"]
[Black "Chigaev, Maksim"]
[WhiteFideId "30924502"]
[BlackFideId "4108116"]
[WhiteElo "2085"]
[BlackElo "2628"]
[Result "0-1"]
[Round "02"]
[TimeControl "180+2"]
[Date "2023.02.15"]
[WhiteClock "0:00:02"]
[BlackClock "0:00:12"]

1. e4 {[%clk 0:03:00]}  c5 {[%clk 0:03:00]} 2. Nf3 {[%clk 0:03:00]}  e6 {[%clk 0:03:00]} 3. d4 {[%clk 0:03:00]}  cxd4 {[%clk 0:03:01]} 4. Nxd4 {[%clk 0:03:00]}  Nf6 {[%clk 0:03:02]} 5. Nc3 {[%clk 0:03:00]}  Nc6 {[%clk 0:03:02]} 6. Nxc6 {[%clk 0:02:53]}  bxc6 {[%clk 0:03:03]} 7. e5 {[%clk 0:02:54]}  Nd5 {[%clk 0:03:03]} 8. Ne4 {[%clk 0:02:55]}  Bb7 {[%clk 0:03:04]} 9. c4 {[%clk 0:02:46]}  Nb4 {[%clk 0:03:02]} 10. Bg5 {[%clk 0:02:19]}  Qc7 {[%clk 0:03:01]} 11. f4 {[%clk 0:02:10]}  c5 {[%clk 0:02:36]} 12. Nc3 {[%clk 0:01:47]}  Nc6 {[%clk 0:01:59]} 13. Bd3 {[%clk 0:01:38]}  Nxe5 {[%clk 0:01:54]} 14. O-O {[%clk 0:01:27]}  Nxd3 {[%clk 0:01:39]} 15. Qxd3 {[%clk 0:01:28]}  Qc6 {[%clk 0:01:31]} 16. Rf2 {[%clk 0:01:25]}  f6 {[%clk 0:01:26]} 17. Bh4 {[%clk 0:01:22]}  Be7 {[%clk 0:01:27]} 18. f5 {[%clk 0:01:13]}  O-O {[%clk 0:01:23]} 19. Re1 {[%clk 0:01:03]}  Bd6 {[%clk 0:01:18]} 20. Bg3 {[%clk 0:00:52]}  Bxg3 {[%clk 0:01:01]} 21. Qxg3 {[%clk 0:00:53]}  Kh8 {[%clk 0:00:59]} 22. h3 {[%clk 0:00:37]}  Rae8 {[%clk 0:00:40]} 23. Re4 {[%clk 0:00:36]}  exf5 {[%clk 0:00:35]} 24. Rh4 {[%clk 0:00:24]}  Kg8 {[%clk 0:00:27]} 25. Rxf5 {[%clk 0:00:22]}  Re3 {[%clk 0:00:20]} 26. Qf2 {[%clk 0:00:18]}  Re1+ {[%clk 0:00:20]} 27. Kh2 {[%clk 0:00:17]}  Qd6+ {[%clk 0:00:21]} 28. Rhf4 {[%clk 0:00:14]}  Re5 {[%clk 0:00:21]} 29. Qg3 {[%clk 0:00:09]}  Rxf5 {[%clk 0:00:15]} 30. Rxf5 {[%clk 0:00:10]}  Qxg3+ {[%clk 0:00:15]} 31. Kxg3 {[%clk 0:00:11]}  d6 {[%clk 0:00:16]} 32. Nb5 {[%clk 0:00:11]}  Rd8 {[%clk 0:00:16]} 33. Rf2 {[%clk 0:00:10]}  Kf7 {[%clk 0:00:16]} 34. Rd2 {[%clk 0:00:10]}  Ke7 {[%clk 0:00:17]} 35. a3 {[%clk 0:00:10]}  a6 {[%clk 0:00:17]} 36. Nc3 {[%clk 0:00:10]}  Bc6 {[%clk 0:00:17]} 37. Re2+ {[%clk 0:00:10]}  Kd7 {[%clk 0:00:17]} 38. Rd2 {[%clk 0:00:11]}  Rb8 {[%clk 0:00:17]} 39. Kf2 {[%clk 0:00:10]}  Ke6 {[%clk 0:00:17]} 40. Ne2 {[%clk 0:00:10]}  g5 {[%clk 0:00:17]} 41. g3 {[%clk 0:00:07]}  h5 {[%clk 0:00:18]} 42. h4 {[%clk 0:00:07]}  a5 {[%clk 0:00:17]} 43. Nc3 {[%clk 0:00:07]}  Rg8 {[%clk 0:00:13]} 44. Ne2 {[%clk 0:00:06]}  gxh4 {[%clk 0:00:11]} 45. gxh4 {[%clk 0:00:07]}  Rg4 {[%clk 0:00:11]} 46. Rd3 {[%clk 0:00:04]}  Rxh4 {[%clk 0:00:11]} 47. Re3+ {[%clk 0:00:04]}  Kf7 {[%clk 0:00:11]} 48. Rd3 {[%clk 0:00:02]}  Ke7 {[%clk 0:00:11]} 49. Re3+ {[%clk 0:00:02]}  Kd7 {[%clk 0:00:11]} 50. Rg3 {[%clk 0:00:02]}  Rxc4 {[%clk 0:00:11]} 51. Rg7+ {[%clk 0:00:02]}  Ke6 {[%clk 0:00:12]} 52. Ke3 {[%clk 0:00:01]}  Re4+ {[%clk 0:00:12]} 53. Kd2 {[%clk 0:00:02]}  h4 {[%clk 0:00:12]} 54. Rh7 {[%clk 0:00:02]}  Rg4 {[%clk 0:00:12]} 55. Ke3 {[%clk 0:00:02]}  Re4+ {[%clk 0:00:10]} 56. Kd2 {[%clk 0:00:02]}  a4 {[%clk 0:00:09]} 57. Nc3 {[%clk 0:00:01]}  Rg4 {[%clk 0:00:09]} 58. Ke3 {[%clk 0:00:02]}  d5 {[%clk 0:00:09]} 59. Ne2 {[%clk 0:00:01]}  d4+ {[%clk 0:00:09]} 60. Kd2 {[%clk 0:00:01]}  Rg2 {[%clk 0:00:10]} 61. Ke1 {[%clk 0:00:02]}  Rh2 {[%clk 0:00:10]} 62. Nf4+ {[%clk 0:00:02]}  Kf5 {[%clk 0:00:10]} 63. Nd3 {[%clk 0:00:03]}  Be4 {[%clk 0:00:10]} 64. Nxc5 {[%clk 0:00:03]}  Bf3 {[%clk 0:00:10]} 65. Nxa4 {[%clk 0:00:01]}  d3 {[%clk 0:00:10]} 66. Nc3 {[%clk 0:00:01]}  d2+ {[%clk 0:00:10]} 67. Kf1 {[%clk 0:00:02]}  d1=Q+ {[%clk 0:00:10]} 68. Nxd1 {[%clk 0:00:03]}  Bxd1 {[%clk 0:00:11]} 69. b4 {[%clk 0:00:03]}  Bf3 {[%clk 0:00:08]} 70. Kg1 {[%clk 0:00:03]}  Rg2+ {[%clk 0:00:08]} 71. Kf1 {[%clk 0:00:03]}  Rg4 {[%clk 0:00:08]} 72. a4 {[%clk 0:00:03]}  Rxb4 {[%clk 0:00:07]} 73. Kf2 {[%clk 0:00:04]}  Bg4 {[%clk 0:00:07]} 74. Rxh4 {[%clk 0:00:04]}  Rf4+ {[%clk 0:00:07]} 75. Kg1 {[%clk 0:00:03]}  Rxa4 {[%clk 0:00:08]} 76. Rh8 {[%clk 0:00:04]}  Kg5 {[%clk 0:00:09]} 77. Rg8+ {[%clk 0:00:04]}  Kf4 {[%clk 0:00:09]} 78. Rf8 {[%clk 0:00:05]}  f5 {[%clk 0:00:10]} 79. Kf2 {[%clk 0:00:04]}  Ra2+ {[%clk 0:00:10]} 80. Ke1 {[%clk 0:00:03]}  Kg3 {[%clk 0:00:11]} 81. Rb8 {[%clk 0:00:02]}  f4 {[%clk 0:00:12]} 82. Rb3+ {[%clk 0:00:02]}  f3 {[%clk 0:00:12]} 83. Kf1 {[%clk 0:00:01]}  Ra1+ {[%clk 0:00:11]} 84. Rb1 {[%clk 0:00:02]}  Rxb1# {[%clk 0:00:12]} 0-1


[Site "https://www.chess.com"]